bitfinex/quotes_BTCUSD_20250822
["timestamp","ask_amount","ask_price","bid_price","bid_amount"]
[1755826461638,0.17684393,113020.0,113010.0,0.05270064]
[1755826461842,0.17484393,113020.0,113010.0,0.05270064]
[1755826462058,0.17384393,113020.0,113010.0,0.05270064]
[1755826463670,0.02216393,113020.0,113010.0,0.05270064]
[1755826463926,0.17376393,113020.0,113010.0,0.05270064]
[1755826464154,0.17579393,113020.0,113010.0,0.05270064]
[1755826466012,0.17376393,113020.0,113010.0,0.05270064]
[1755826467192,0.06808,113040.0,113010.0,0.09593287]
[1755826467400,0.08466643,113040.0,113010.0,0.09814506]
[1755826467597,0.08466643,113040.0,113010.0,0.06398387]
[1755826467598,0.0138508,113020.0,113010.0,0.06398387]
[1755826467806,0.06808,113040.0,113010.0,0.025]
[1755826468020,0.09088905,113040.0,113020.0,0.026618]
[1755826468400,0.15144,113030.0,113020.0,0.026618]
[1755826469774,0.15148832,113030.0,113020.0,0.026618]
[1755826470640,0.15348832,113030.0,113020.0,0.026618]
[1755826471728,0.15448832,113030.0,113020.0,0.026618]
[1755826471938,0.15448832,113030.0,113020.0,0.029838]
[1755826472353,0.15448832,113030.0,113020.0,0.026618]
[1755826474957,0.15448832,113030.0,113020.0,0.029838]
[1755826475154,0.15424832,113030.0,113020.0,0.029838]
[1755826475330,0.15424832,113030.0,113020.0,0.031888]
[1755826476836,0.15420832,113030.0,113020.0,0.031888]
[1755826477029,0.15416832,113030.0,113020.0,0.031888]
[1755826479438,0.15416832,113030.0,113020.0,0.029838]
[1755826479645,0.1624729,113030.0,113020.0,0.029838]
[1755826480495,0.17908484,113030.0,113020.0,0.029838]
[1755826482273,0.17908484,113030.0,113020.0,0.031888]
[1755826482706,0.17908891,113030.0,113020.0,0.031888]
[1755826483345,0.17908891,113030.0,113020.0,0.029838]
[1755826483495,0.17908891,113030.0,113020.0,0.026618]
[1755826486413,0.16247697,113030.0,113020.0,0.026618]
[1755826486777,0.16247697,113030.0,113020.0,0.029838]
[1755826487177,0.01135697,113030.0,113020.0,0.026618]
[1755826487407,0.16223697,113030.0,113020.0,0.029658]
[1755826487604,0.01135697,113030.0,113020.0,0.0372838]
[1755826487807,0.16215697,113030.0,113020.0,0.0372838]
[1755826488024,0.16219697,113030.0,113020.0,0.0372838]
[1755826488174,0.16219697,113030.0,113020.0,0.0622838]
[1755826488781,0.16219973,113030.0,113020.0,0.0622838]
[1755826489503,0.02798467,113030.0,113020.0,0.0622838]
[1755826489712,0.17882467,113030.0,113020.0,0.054658]
[1755826490127,0.17882467,113030.0,113020.0,0.051618]
[1755826490566,0.17882467,113030.0,113020.0,0.056818]
[1755826494032,0.17882467,113030.0,113020.0,0.05253032]
[1755826495037,0.0279867,113030.0,113020.0,0.05474231]
[1755826495262,0.1787467,113030.0,113020.0,0.08688654]
[1755826496227,0.1787467,113030.0,113020.0,0.08467455]
[1755826496503,0.1787467,113030.0,113020.0,0.04733032]
[1755826497035,0.1787478,113030.0,113020.0,0.05037032]
[1755826497696,0.1787478,113030.0,113020.0,0.05253032]
[1755826497874,0.17043261,113030.0,113020.0,0.05253032]
[1755826498269,0.17875746,113030.0,113020.0,0.05253032]
[1755826498647,0.17875743,113030.0,113020.0,0.05253032]
[1755826500786,0.17875743,113030.0,113020.0,0.02233032]
[1755826500988,0.20415765,113030.0,113020.0,0.02233032]
[1755826501704,0.05339765,113030.0,113020.0,0.02233032]
[1755826501919,0.17859843,113030.0,113020.0,0.05756735]
[1755826502583,0.01136502,113030.0,113020.0,0.05756735]
[1755826502944,0.01036502,113030.0,113020.0,0.05756735]
[1755826503157,0.01036502,113030.0,113020.0,0.12800539]
[1755826503341,0.01036502,113030.0,113020.0,0.12296836]
[1755826503769,0.00836502,113030.0,113020.0,0.12296836]
[1755826504220,0.00836502,113030.0,113020.0,0.12739234]
[1755826504632,0.00836502,113030.0,113020.0,0.12518035]
[1755826504810,0.00836502,113030.0,113020.0,0.12618035]
[1755826505266,0.00836502,113030.0,113020.0,0.12839234]
[1755826505679,0.00836502,113030.0,113020.0,0.18296557]
[1755826505904,0.00836502,113030.0,113020.0,0.17854159]
[1755826506122,0.00836502,113030.0,113020.0,0.12396836]
[1755826506288,0.73787932,113040.0,113030.0,0.025]
[1755826506501,0.76073895,113040.0,113030.0,0.0302]
[1755826506705,0.61009895,113040.0,113030.0,0.0302]
[1755826506863,0.76061183,113040.0,113030.0,0.0408062]
[1755826507062,0.76061183,113040.0,113030.0,0.0674202]
[1755826507063,0.69253183,113040.0,113030.0,0.0674202]
[1755826507260,0.65056,113040.0,113030.0,0.0674202]
[1755826508923,0.65056,113040.0,113030.0,0.0684202]
[1755826509802,0.5,113040.0,113030.0,0.05788084]
[1755826511655,0.15056,113050.0,113030.0,0.05788084]
[1755826511901,0.15056,113050.0,113040.0,0.0052516]
[1755826512134,0.15056,113050.0,113040.0,0.0074116]
[1755826512428,0.15056,113050.0,113040.0,0.02187224]
[1755826512660,0.10478785,113060.0,113040.0,0.02566988]
[1755826512911,0.15044,113050.0,113040.0,0.01662064]
[1755826513148,0.15044,113050.0,113040.0,0.04323064]
[1755826513393,0.15044,113050.0,113040.0,0.04627064]
[1755826513658,0.15144,113050.0,113040.0,0.04627064]
[1755826513905,0.15044,113050.0,113040.0,0.04627064]
[1755826514172,0.001,113050.0,113040.0,0.05240068]
[1755826514429,0.18718785,113060.0,113050.0,0.01446064]
[1755826514641,0.18718785,113060.0,113050.0,0.02187205]
[1755826515098,0.18714785,113060.0,113050.0,0.02187205]
[1755826515733,0.18714785,113060.0,113050.0,0.01966064]
[1755826516083,0.18714785,113060.0,113050.0,0.02490071]
[1755826516508,0.18714785,113060.0,113050.0,0.01966064]
[1755826517799,0.18714785,113060.0,113050.0,0.01750064]
[1755826518015,0.18714785,113060.0,113050.0,0.01446064]
[1755826518840,0.18714785,113060.0,113050.0,0.01742064]
[1755826519258,0.03670785,113060.0,113050.0,0.01742064]
[1755826519460,0.18710785,113060.0,113050.0,0.04106964]
[1755826519667,0.5,113070.0,113050.0,0.04106964]
[1755826519865,0.50841139,113070.0,113050.0,0.04106964]
[1755826520150,0.1504,113060.0,113050.0,0.01742064]
[1755826520747,0.1504,113060.0,113050.0,0.04402964]
[1755826521103,0.03780074,113070.0,113050.0,0.04402964]
[1755826521310,0.04508243,113070.0,113050.0,0.05547641]
[1755826522320,0.15036,113060.0,113050.0,0.02886741]
[1755826522659,0.15036,113060.0,113050.0,0.01446064]
[1755826522862,0.15036,113060.0,113050.0,0.04106964]
[1755826523279,0.15036,113060.0,113050.0,0.02558284]
[1755826523480,0.65036,113060.0,113050.0,0.02558284]
[1755826523693,4.89223741,113060.0,113050.0,0.02558284]
[1755826523899,0.15864241,113060.0,113050.0,0.02558284]
[1755826524106,0.65864241,113060.0,113050.0,0.02558284]
[1755826524265,4.89223741,113060.0,113050.0,0.02558284]
[1755826524472,0.15036,113060.0,113050.0,0.02558284]
[1755826524668,0.65864325,113060.0,113050.0,0.02558284]
[1755826524929,4.89223825,113060.0,113050.0,0.02558284]
[1755826525099,0.15864325,113060.0,113050.0,0.02558284]
[1755826525297,0.65864325,113060.0,113050.0,0.02558284]
[1755826525510,4.89223913,113060.0,113050.0,0.02558284]
[1755826525838,0.15864413,113060.0,113050.0,0.02558284]
[1755826526042,0.65864413,113060.0,113050.0,0.02558284]
[1755826526226,4.89223913,113060.0,113050.0,0.02558284]
[1755826526420,0.15864413,113060.0,113050.0,0.02558284]
[1755826526628,0.65864413,113060.0,113050.0,0.02558284]
[1755826526790,4.74187913,113060.0,113050.0,0.05625719]
[1755826526995,0.15868413,113060.0,113050.0,0.05921719]
[1755826527324,0.15868413,113060.0,113050.0,0.02854284]
[1755826527561,0.15868413,113060.0,113050.0,0.02558284]
[1755826527758,0.15868631,113060.0,113050.0,0.02558284]
[1755826529742,0.15868631,113060.0,113050.0,0.02854284]
[1755826533117,0.15860631,113060.0,113050.0,0.03055284]
[1755826533318,0.15860631,113060.0,113050.0,0.05655863]
[1755826533648,0.15860631,113060.0,113050.0,0.04501348]
[1755826533852,0.15861456,113060.0,113050.0,0.04501348]
[1755826534061,0.15861456,113060.0,113050.0,0.04722489]
[1755826534303,0.15861456,113060.0,113050.0,0.04501348]
[1755826534530,0.03680074,113070.0,113050.0,0.04501348]
[1755826534661,0.04509649,113070.0,113060.0,0.00296]
[1755826534915,0.19541649,113070.0,113060.0,0.00497]
[1755826535177,0.19541649,113070.0,113060.0,0.031579]
[1755826536229,0.19541649,113070.0,113060.0,0.04603964]
[1755826539187,0.19541649,113070.0,113060.0,0.04803964]
[1755826539417,0.19541649,113070.0,113060.0,0.05688626]
[1755826539645,0.04509649,113070.0,113060.0,0.05788626]
[1755826539872,0.19541649,113070.0,113060.0,0.05788626]
[1755826540322,0.04509649,113070.0,113060.0,0.05788626]
[1755826540542,0.03680074,113070.0,113060.0,0.05788626]
[1755826540746,0.03680074,113070.0,113060.0,0.07533528]
[1755826545716,0.03680074,113070.0,113060.0,0.34203528]
[1755826548699,0.03680074,113070.0,113060.0,0.49231528]
[1755826560209,0.06804,113100.0,113080.0,0.025]
[1755826560450,0.07632345,113100.0,113080.0,0.025]
[1755826561085,0.06804,113100.0,113080.0,0.051603]
[1755826561292,0.08253983,113100.0,113080.0,0.0567633]
[1755826561503,0.23277983,113100.0,113080.0,0.0567633]
[1755826561742,0.22756562,113100.0,113080.0,0.0567633]
[1755826561961,0.25235147,113100.0,113080.0,0.0567633]
[1755826563499,0.25235147,113100.0,113080.0,0.051603]
[1755826565348,0.00621432,113100.0,113080.0,0.051603]
[1755826565610,0.06804,113100.0,113080.0,0.051603]
[1755826566066,0.06804,113100.0,113080.0,0.026603]
[1755826566539,0.73740016,113100.0,113080.0,0.026603]
[1755826566755,0.23740016,113100.0,113080.0,0.026603]
[1755826568677,4.233595,113090.0,113080.0,0.026603]
[1755826572149,4.233595,113090.0,113070.0,0.07043804]
[1755826572370,0.1502,113080.0,113070.0,0.07043804]
[1755826572588,0.1502,113080.0,113070.0,0.09704404]
[1755826573751,0.1502,113080.0,113070.0,0.10228404]
[1755826574179,0.1502,113080.0,113070.0,0.10328404]
[1755826574872,0.1502,113080.0,113070.0,0.10118404]
[1755826575753,0.1502,113080.0,113070.0,0.028606]
[1755826576243,0.1502,113080.0,113070.0,0.033846]
[1755826576998,0.1502,113080.0,113070.0,0.028606]
[1755826577438,0.1585037,113080.0,113070.0,0.028606]
[1755826579184,0.1502,113080.0,113070.0,0.028606]
[1755826579405,0.16472993,113080.0,113070.0,0.002]
[1755826579646,4.41745181,113080.0,113070.0,0.002]
[1755826579863,4.43405383,113080.0,113070.0,0.002]
[1755826580739,4.43405383,113080.0,113070.0,0.001]
[1755826580994,4.43405383,113080.0,113050.0,0.054601]
[1755826581202,4.301675,113070.0,113050.0,0.05472934]
[1755826581406,0.1502,113060.0,113050.0,0.05472934]
[1755826581626,0.1502,113060.0,113050.0,0.05173934]
[1755826582489,0.1502,113060.0,113050.0,0.05473934]
[1755826582701,0.1502,113060.0,113050.0,0.05772934]
[1755826582918,0.1502,113060.0,113050.0,0.06072934]
[1755826583728,0.1502,113060.0,113050.0,0.05772934]
[1755826583933,0.1502,113060.0,113050.0,0.05981934]
[1755826584136,0.1502,113060.0,113050.0,0.06381934]
[1755826585169,0.1502,113060.0,113050.0,0.07724508]
[1755826585791,0.1502,113060.0,113050.0,0.06381934]
[1755826588512,0.06808,113080.0,113050.0,0.06381934]
[1755826588789,4.012925,113070.0,113050.0,0.06381934]
[1755826589012,4.02121691,113070.0,113050.0,0.06381934]
[1755826589275,0.00829191,113070.0,113050.0,0.06381934]
[1755826589521,0.00829191,113070.0,113050.0,0.06081934]
[1755826589760,0.15849191,113070.0,113050.0,0.06081934]
[1755826590487,0.15849191,113070.0,113050.0,0.05681934]
[1755826590744,0.15849191,113070.0,113050.0,0.05173934]
[1755826590989,0.15849191,113070.0,113050.0,0.03073934]
[1755826591238,0.65849191,113070.0,113050.0,0.03073934]
[1755826591484,4.67141691,113070.0,113050.0,0.02973934]
[1755826591724,0.15849191,113070.0,113050.0,0.02873934]
[1755826591964,0.15849191,113070.0,113050.0,0.02973934]
[1755826592260,0.15849191,113070.0,113050.0,0.02773934]
[1755826592530,0.15849191,113070.0,113050.0,0.02873934]
[1755826592786,0.65849191,113070.0,113050.0,0.02873934]
[1755826593049,4.67141691,113070.0,113050.0,0.02873934]
[1755826593290,0.15849191,113070.0,113050.0,0.03172934]
[1755826594240,0.15024,113060.0,113050.0,0.04444608]
[1755826594484,0.15853191,113060.0,113050.0,0.04653608]
[1755826594735,0.5,113070.0,113050.0,0.03381934]
[1755826594981,3.771374,113070.0,113050.0,0.03082934]
[1755826595238,3.771374,113070.0,113060.0,0.00299]
[1755826595488,3.771374,113070.0,113060.0,0.00508]
[1755826595993,3.921614,113070.0,113060.0,0.00508]
[1755826596266,0.15024,113070.0,113060.0,0.00508]
[1755826596502,0.15024,113070.0,113050.0,0.03173934]
[1755826596723,0.15024,113070.0,113050.0,0.04774608]
[1755826597143,0.15024,113070.0,113050.0,0.04275608]
[1755826597399,0.15024,113070.0,113060.0,0.00608]
[1755826597825,0.15024,113070.0,113060.0,0.00508]
[1755826598454,0.15024,113070.0,113060.0,0.00299]
[1755826598694,0.15024,113070.0,113060.0,0.00399]
[1755826598912,0.15024,113070.0,113060.0,0.00608]
[1755826599122,0.15024,113070.0,113060.0,0.00708]
[1755826600112,0.15024,113070.0,113060.0,0.002]
[1755826600320,0.17305236,113070.0,113060.0,0.002]
[1755826601532,0.17305236,113070.0,113060.0,0.00499]
[1755826601742,0.17520236,113070.0,113050.0,0.03561509]
[1755826601941,0.17520236,113070.0,113050.0,0.02277927]
[1755826602252,0.17520236,113070.0,113050.0,0.01916966]
[1755826602468,0.17835236,113070.0,113060.0,0.00209]
[1755826602670,0.15024,113070.0,113050.0,0.01515855]
[1755826602871,0.00315,113070.0,113060.0,0.00209]
[1755826603009,0.15558,113070.0,113060.0,0.00209]
[1755826603598,0.65558,113070.0,113050.0,0.01515855]
[1755826603826,4.426954,113070.0,113050.0,0.01515855]
[1755826604062,0.15558,113070.0,113050.0,0.01515855]
[1755826604275,0.66180518,113070.0,113050.0,0.01615855]
[1755826604479,4.44978004,113070.0,113050.0,0.01615855]
[1755826604688,0.17840604,113070.0,113050.0,0.01615855]
[1755826604897,0.67840604,113070.0,113050.0,0.01615855]
[1755826605151,4.276674,113070.0,113060.0,0.00209]
[1755826605358,0.15024,113070.0,113060.0,0.02709]
[1755826606612,0.15854274,113070.0,113060.0,0.02709]
[1755826606817,0.15024,113070.0,113060.0,0.02709]
[1755826607022,0.15854266,113070.0,113060.0,0.053698]
[1755826607256,0.00830266,113070.0,113060.0,0.054698]
[1755826607703,0.00830266,113070.0,113060.0,0.05460707]
[1755826607929,0.00830266,113070.0,113060.0,0.07882777]
[1755826608139,0.15024,113090.0,113060.0,0.14926581]
[1755826608357,0.16167273,113090.0,113060.0,0.15226581]
[1755826608571,0.16167273,113090.0,113060.0,0.15026581]
[1755826609025,0.16167273,113090.0,113060.0,0.15426581]
[1755826609457,0.16167273,113090.0,113080.0,0.05]
[1755826609458,0.15024,113090.0,113080.0,0.05]
[1755826609674,0.15224,113090.0,113080.0,0.057394]
[1755826610488,0.15224,113090.0,113080.0,0.083996]
[1755826611273,0.21832,113100.0,113080.0,0.087936]
[1755826611528,0.22145,113100.0,113080.0,0.087936]
[1755826611744,0.07121,113100.0,113090.0,0.05]
[1755826611984,0.22365,113100.0,113090.0,0.0297643]
[1755826612837,0.22365,113100.0,113090.0,0.06296613]
[1755826613050,0.21852,113100.0,113090.0,0.09090613]
[1755826613861,0.21852,113100.0,113090.0,0.08796613]
[1755826614087,0.21852,113100.0,113090.0,0.07412163]
[1755826614476,0.22052,113100.0,113090.0,0.07412163]
[1755826614690,0.22052,113100.0,113090.0,0.0624693]
[1755826615124,0.21852,113100.0,113090.0,0.0624693]
[1755826615319,0.22052,113100.0,113090.0,0.0624693]
[1755826615549,0.2184,113100.0,113090.0,0.05880947]
[1755826616031,0.2184,113100.0,113090.0,0.05586947]
[1755826616252,0.2204,113100.0,113090.0,0.05586947]
[1755826616702,0.2204,113100.0,113090.0,0.05017731]
[1755826616918,0.22353,113100.0,113090.0,0.05017731]
[1755826617936,0.22353,113100.0,113090.0,0.05227731]
[1755826618796,0.22353,113100.0,113090.0,0.04658515]
[1755826618797,0.06808,113100.0,113090.0,0.04658515]
[1755826619064,0.22345,113100.0,113090.0,0.04658515]
[1755826619286,0.15537,113100.0,113090.0,0.04658515]
[1755826620896,0.15537,113100.0,113090.0,0.04089299]
[1755826621109,0.15537,113100.0,113090.0,0.03879299]
[1755826621328,0.15545549,113100.0,113090.0,0.03879299]
[1755826621530,0.15545549,113100.0,113090.0,0.04089299]
[1755826622905,0.15545549,113100.0,113090.0,0.03520083]
[1755826623369,0.15545549,113100.0,113090.0,0.03071871]
[1755826624227,0.15545549,113100.0,113090.0,0.03281871]
[1755826624644,0.15545549,113100.0,113090.0,0.03257291]
[1755826625893,0.15541549,113100.0,113090.0,0.03257291]
[1755826626645,0.15541549,113100.0,113090.0,0.03239519]
[1755826628493,0.15541549,113100.0,113090.0,0.02105175]
[1755826628812,0.15541549,113100.0,113090.0,0.04765175]
[1755826629181,0.15541549,113100.0,113090.0,0.04196231]
[1755826629379,0.15541549,113100.0,113090.0,0.03802731]
[1755826629609,0.15541549,113100.0,113090.0,0.03592731]
[1755826629811,0.15541549,113100.0,113090.0,0.03802731]
[1755826630489,0.16369223,113100.0,113090.0,0.03751056]
[1755826630693,8.549e-05,113100.0,113090.0,0.05938082]
[1755826630908,0.15028549,113100.0,113090.0,0.01762142]
[1755826631108,0.15028549,113100.0,113090.0,0.01601142]
[1755826631317,0.15028549,113100.0,113090.0,0.04260842]
[1755826631959,0.15028549,113100.0,113090.0,0.02124993]
[1755826632172,8.549e-05,113100.0,113090.0,0.02124993]
[1755826632388,0.15028549,113100.0,113090.0,0.01332543]
[1755826632784,8.549e-05,113100.0,113090.0,0.01332543]
[1755826633004,8.549e-05,113100.0,113090.0,0.01332533]
[1755826633197,8.549e-05,113100.0,113090.0,0.01632533]
[1755826633608,8.549e-05,113100.0,113090.0,0.01522031]
[1755826633766,0.00321549,113100.0,113090.0,0.01522031]
[1755826633972,0.00321549,113100.0,113090.0,0.03266933]
[1755826634182,8.549e-05,113100.0,113090.0,0.04298007]
[1755826634468,0.00836824,113100.0,113090.0,0.04362198]
[1755826634862,0.01149824,113100.0,113090.0,0.04362198]
[1755826636717,0.01149824,113100.0,113090.0,0.03331124]
[1755826639065,0.01361824,113100.0,113090.0,0.03331124]
[1755826640142,0.01361824,113100.0,113090.0,0.29890622]
[1755826641412,0.01361824,113100.0,113090.0,0.28727071]
[1755826641866,0.00836824,113100.0,113090.0,0.31386771]
[1755826642334,0.00836824,113100.0,113090.0,0.34525448]
[1755826642831,0.00325549,113100.0,113090.0,0.31386771]
[1755826643647,0.0115558,113100.0,113090.0,0.31386771]
[1755826645118,0.0136758,113100.0,113090.0,0.31386771]
[1755826652215,0.0115558,113100.0,113090.0,0.31386771]
[1755826652426,0.01367698,113100.0,113090.0,0.31386771]
[1755826653298,0.01367698,113100.0,113090.0,0.46402771]
[1755826654385,0.15016,113110.0,113100.0,0.01132302]
[1755826654597,0.15232831,113110.0,113100.0,0.01132302]
[1755826655603,0.15232831,113110.0,113100.0,0.01232302]
[1755826655874,0.15232831,113110.0,113100.0,0.01332302]
[1755826656524,0.00533831,113110.0,113100.0,0.01332302]
[1755826658752,0.00533831,113110.0,113100.0,0.01540302]
[1755826659409,0.00533831,113110.0,113100.0,0.0658962]
[1755826660038,0.00533831,113110.0,113100.0,0.01332302]
[1755826663389,0.00216831,113110.0,113100.0,0.01540302]
[1755826663617,0.00533831,113110.0,113100.0,0.01540302]
[1755826665416,0.00216831,113110.0,113100.0,0.01540302]
[1755826665843,0.06804,113130.0,113100.0,0.01842302]
[1755826666055,3.77413655,113120.0,113100.0,0.06635592]
[1755826666291,0.02285423,113120.0,113100.0,0.06635592]
[1755826666507,0.03392744,113120.0,113100.0,0.09295292]
[1755826666720,0.03392744,113120.0,113100.0,0.09195292]
[1755826666934,0.18404744,113120.0,113100.0,0.09195292]
[1755826667075,0.18128489,113120.0,113100.0,0.09095292]
[1755826667800,0.18446489,113120.0,113100.0,0.09095292]
[1755826668645,0.18128489,113120.0,113100.0,0.09095292]
[1755826669067,0.16466363,113120.0,113100.0,0.15947529]
[1755826669302,0.00831066,113120.0,113100.0,0.15666845]
[1755826669463,0.01149066,113120.0,113100.0,0.15666845]
[1755826669694,0.01149066,113120.0,113100.0,0.39677145]
[1755826669913,0.01149066,113120.0,113110.0,0.026596]
[1755826670168,0.01359066,113120.0,113110.0,0.028746]
[1755826670594,0.01359066,113120.0,113110.0,0.07097931]
[1755826670790,0.01358596,113120.0,113110.0,0.07097931]
[1755826671436,0.01358589,113120.0,113110.0,0.07097931]
[1755826671643,0.01358589,113120.0,113110.0,0.029746]
[1755826671854,0.01911082,113120.0,113110.0,0.027596]
[1755826672481,0.01911082,113120.0,113110.0,0.0282449]
[1755826680011,0.01080493,113120.0,113110.0,0.0282449]
[1755826680227,0.01910757,113120.0,113110.0,0.0282449]
[1755826680666,0.01910755,113120.0,113110.0,0.0282449]
[1755826681316,0.01910755,113120.0,113110.0,0.0303949]
[1755826682173,0.01910755,113120.0,113110.0,0.0282449]
[1755826685266,0.01910755,113120.0,113110.0,0.0303949]
[1755826686531,0.01910755,113120.0,113110.0,0.04861859]
[1755826687585,0.01592755,113120.0,113110.0,0.02969732]
[1755826687838,0.01910755,113120.0,113110.0,0.02969732]
[1755826688296,0.01910755,113120.0,113110.0,0.02754732]
[1755826688529,0.0191082,113120.0,113110.0,0.02754732]
[1755826690653,0.0191082,113120.0,113110.0,0.02969732]
[1755826691201,0.00318,113130.0,113110.0,0.0804668]
[1755826691431,0.02601692,113130.0,113110.0,0.0804668]
[1755826692090,0.02601692,113130.0,113110.0,0.0794668]
[1755826692297,0.17605692,113130.0,113110.0,0.0784668]
[1755826692512,0.0021,113120.0,113110.0,0.0784668]
[1755826692739,0.00528,113120.0,113110.0,0.0784668]
[1755826693777,0.00528,113120.0,113110.0,0.0794668]
[1755826694035,0.0021,113120.0,113110.0,0.0794668]
[1755826694237,0.00528,113120.0,113110.0,0.0794668]
[1755826694603,0.00528,113120.0,113110.0,0.0804668]
[1755826694810,0.00528,113120.0,113110.0,0.04961145]
[1755826695950,0.18851109,113130.0,113110.0,0.04961145]
[1755826696145,0.21135622,113130.0,113110.0,0.05275145]
[1755826696376,0.21135622,113130.0,113110.0,0.02720413]
[1755826696579,0.21135622,113130.0,113120.0,0.026596]
[1755826696779,0.21345622,113130.0,113120.0,0.026596]
[1755826697408,0.21345622,113130.0,113120.0,0.02064579]
[1755826697626,0.19061109,113130.0,113120.0,0.02064579]
[1755826697833,0.21346143,113130.0,113120.0,0.02064579]
[1755826698254,0.21346429,113130.0,113120.0,0.02064579]
[1755826700202,0.21346429,113130.0,113100.0,0.29563031]
[1755826700433,4.274514,113120.0,113100.0,0.30231218]
[1755826700670,0.15518,113110.0,113100.0,0.32222631]
[1755826701965,0.15518,113110.0,113100.0,0.30231218]
[1755826702183,0.15518,113110.0,113100.0,0.27571618]
[1755826702626,0.16140943,113110.0,113100.0,0.27671618]
[1755826703175,0.16971539,113110.0,113100.0,0.27571618]
[1755826703633,0.16971539,113110.0,113100.0,0.27871618]
[1755826703842,0.16971539,113110.0,113100.0,0.27771618]
[1755826704062,0.18632425,113110.0,113100.0,0.27771618]
[1755826704308,0.18632425,113110.0,113100.0,0.27571618]
[1755826704501,0.18631753,113110.0,113100.0,0.27571618]
[1755826704783,0.18631753,113110.0,113100.0,0.27671618]
[1755826705437,0.16970867,113110.0,113100.0,0.01001618]
[1755826705654,0.16970867,113110.0,113100.0,0.01101618]
[1755826706952,0.16140657,113110.0,113100.0,0.01101618]
[1755826707136,0.171778,113110.0,113100.0,0.01101618]
[1755826707351,0.18630065,113110.0,113100.0,0.01101618]
[1755826707963,0.18630052,113110.0,113100.0,0.01101618]
[1755826708219,0.180077,113110.0,113100.0,0.01101618]
[1755826708633,4.04230856,113110.0,113080.0,0.28661413]
[1755826708817,3.774514,113100.0,113070.0,0.01991413]
[1755826709030,0.002,113080.0,113070.0,0.01991413]
[1755826709226,0.00514,113080.0,113070.0,0.01991413]
[1755826709473,0.00514,113080.0,113070.0,0.02200413]
[1755826710283,0.00514,113080.0,113070.0,0.02548739]
[1755826710942,0.00514,113080.0,113070.0,0.02439739]
[1755826711365,0.00514,113080.0,113070.0,0.02339739]
[1755826711747,0.00514,113080.0,113070.0,0.02439739]
[1755826712159,0.00514,113080.0,113070.0,0.02039739]
[1755826713441,0.00514,113080.0,113070.0,0.02248739]
[1755826714085,0.179787,113090.0,113070.0,0.02248739]
[1755826714322,0.179787,113090.0,113070.0,0.02547739]
[1755826714323,0.18806702,113090.0,113070.0,0.02547739]
[1755826714706,0.03802702,113090.0,113070.0,0.02547739]
[1755826714926,0.176647,113090.0,113070.0,0.03506893]
[1755826715132,0.676647,113090.0,113070.0,0.03506893]
[1755826715355,4.451161,113090.0,113070.0,0.02547739]
[1755826715573,0.180787,113090.0,113070.0,0.02547739]
[1755826717836,0.177647,113090.0,113070.0,0.02547739]
[1755826718036,0.15104,113090.0,113070.0,0.02248739]
[1755826718246,0.15104,113090.0,113070.0,0.02547739]
[1755826718454,0.15104,113090.0,113070.0,0.02248739]
[1755826718655,0.15104,113090.0,113080.0,0.02290413]
[1755826718856,0.15104,113090.0,113080.0,0.02499413]
[1755826719057,0.001,113090.0,113080.0,0.02499413]
[1755826719299,0.15004,113100.0,113080.0,0.02499413]
[1755826719703,0.15004,113100.0,113090.0,0.01991413]
[1755826719883,0.15004,113100.0,113090.0,0.02200413]
[1755826720668,0.15204,113100.0,113090.0,0.02200413]
[1755826721140,0.15004,113100.0,113090.0,0.02300413]
[1755826722042,0.15204,113100.0,113090.0,0.02300413]
[1755826722253,0.15004,113100.0,113090.0,0.02599413]
[1755826722462,0.114381,113110.0,113090.0,0.02599413]
[1755826722677,0.15004,113100.0,113090.0,0.02599413]
[1755826722884,0.15004,113100.0,113090.0,0.02799413]
[1755826723873,0.15004,113100.0,113090.0,0.02699413]
[1755826724293,0.15004,113100.0,113090.0,0.02500413]
[1755826724542,0.15518,113100.0,113090.0,0.02291413]
[1755826724743,0.15518,113100.0,113090.0,0.02191413]
[1755826724858,0.15518,113100.0,113090.0,0.002]
[1755826729490,0.16346214,113100.0,113090.0,0.02191413]
[1755826733185,0.18004749,113100.0,113090.0,0.02191413]
[1755826734105,0.18004749,113100.0,113090.0,0.002]
[1755826734320,0.20537807,113100.0,113090.0,0.002]
[1755826734763,0.22576046,113100.0,113090.0,0.002]
[1755826734983,0.23199745,113100.0,113090.0,0.002]
[1755826735475,0.23199857,113100.0,113090.0,0.002]
[1755826738008,0.23200082,113100.0,113090.0,0.002]
[1755826739469,4.00337482,113100.0,113090.0,0.002]
[1755826741283,4.00333482,113100.0,113090.0,0.002]
[1755826741922,4.00333482,113100.0,113090.0,0.00407]
[1755826742133,4.00333482,113100.0,113090.0,0.002]
[1755826743026,3.99504653,113100.0,113090.0,0.002]
[1755826743245,4.01994814,113100.0,113090.0,0.002]
[1755826743595,4.00335039,113100.0,113090.0,0.002]
[1755826743819,4.0199509,113100.0,113090.0,0.002]
[1755826752273,4.01165065,113100.0,113090.0,0.002]
[1755826752569,4.01996973,113100.0,113090.0,0.002]
[1755826752957,4.01996978,113100.0,113090.0,0.002]
[1755826754080,3.99336678,113100.0,113090.0,0.002]
[1755826759155,3.99336678,113100.0,113070.0,0.02039739]
[1755826759402,3.924404,113090.0,113070.0,0.02039739]
[1755826759603,0.15213,113080.0,113070.0,0.02241739]
[1755826759812,0.17704532,113080.0,113070.0,0.02241739]
[1755826761093,0.16043514,113080.0,113070.0,0.02241739]
[1755826761721,0.15213,113080.0,113070.0,0.02241739]
[1755826761904,0.16043643,113080.0,113070.0,0.02241739]
[1755826762079,0.16043643,113080.0,113070.0,0.02341739]
[1755826762291,0.16043694,113080.0,113070.0,0.02341739]
[1755826762875,0.16043694,113080.0,113070.0,0.02441739]
[1755826763098,0.15830694,113080.0,113070.0,0.02441739]
[1755826763352,0.15830694,113080.0,113070.0,0.02753739]
[1755826764947,0.15830556,113080.0,113070.0,0.02753739]
[1755826766442,0.15830484,113080.0,113070.0,0.02753739]
[1755826769901,0.16346484,113080.0,113070.0,0.02441739]
[1755826770112,0.16346484,113080.0,113070.0,0.02239739]
[1755826770320,0.18007321,113080.0,113070.0,0.02239739]
[1755826770525,0.16346484,113080.0,113070.0,0.02239739]
[1755826770943,0.18007187,113080.0,113070.0,0.02239739]
[1755826771173,0.15516,113080.0,113070.0,0.02239739]
[1755826771382,0.18007057,113080.0,113070.0,0.02239739]
[1755826772442,4.45144457,113080.0,113070.0,0.02239739]
[1755826772652,0.18007057,113080.0,113070.0,0.02239739]
[1755826772860,0.68007057,113080.0,113070.0,0.02239739]
[1755826773064,4.45144457,113080.0,113070.0,0.00248326]
[1755826773281,0.18007057,113080.0,113070.0,0.00248326]